bitfinex-derivatives/quotes_BTCF0:USTF0_20251119
["timestamp","ask_amount","ask_price","bid_price","bid_amount"]
[1763515156633,0.1795188,92353.0,92352.0,0.06839]
[1763515157146,0.20296758,92353.0,92352.0,0.06839]
[1763515157347,0.1795188,92353.0,92352.0,0.06839]
[1763515157748,0.07117,92351.0,92350.0,0.00171523]
[1763515157945,0.07117,92351.0,92350.0,0.17845703]
[1763515158946,0.07117,92351.0,92350.0,0.07010523]
[1763515159147,0.07117,92351.0,92350.0,0.17845703]
[1763515159449,0.07317,92351.0,92350.0,0.17845703]
[1763515161145,0.02547222,92351.0,92350.0,0.17845703]
[1763515161645,0.002,92351.0,92350.0,0.17845703]
[1763515162146,0.002,92351.0,92350.0,0.53925703]
[1763515163949,0.002,92351.0,92350.0,0.43090523]
[1763515164257,0.1083487,92353.0,92352.0,0.05826]
[1763515165859,0.1382687,92353.0,92352.0,0.05826]
[1763515166543,0.1682928,92360.0,92359.0,0.166599]
[1763515166740,0.16950827,92360.0,92359.0,0.166599]
[1763515167158,0.05995,92358.0,92357.0,0.29257]
[1763515167356,0.05995,92358.0,92357.0,0.3211]
[1763515168260,0.06095,92358.0,92357.0,0.3211]
[1763515168852,0.06095,92358.0,92357.0,0.26284]
[1763515169657,0.06095,92358.0,92357.0,0.29221]
[1763515170157,0.06095,92358.0,92357.0,0.02937]
[1763515171053,0.1692924,92358.0,92357.0,0.02937]
[1763515173852,0.1692924,92358.0,92342.0,0.3608]
[1763515173853,0.17037,92343.0,92342.0,0.3608]
[1763515174259,0.1703724,92341.0,92340.0,0.00171523]
[1763515174465,0.170377,92337.0,92333.0,0.26276]
[1763515174758,0.3608,92347.0,92339.0,0.1687547]
[1763515174959,0.3618,92358.0,92356.0,0.06039]
[1763515174960,0.031,92357.0,92356.0,0.06039]
[1763515175158,0.05436896,92357.0,92356.0,0.06039]
[1763515175362,0.08537896,92357.0,92356.0,0.06039]
[1763515176164,0.08539153,92357.0,92356.0,0.06039]
[1763515177261,0.01946547,92360.0,92359.0,0.06039]
[1763515177262,0.03221547,92360.0,92359.0,0.06039]
[1763515177462,0.05563389,92360.0,92359.0,0.06039]
[1763515177863,0.19498389,92360.0,92359.0,0.06039]
[1763515178372,0.08664389,92360.0,92359.0,0.06039]
[1763515178971,0.02463389,92360.0,92359.0,0.06039]
[1763515179770,0.02341842,92360.0,92359.0,0.06039]
[1763515183370,6.6e-07,92366.0,92365.0,0.1083342]
[1763515183668,6.6e-07,92366.0,92365.0,0.7318942]
[1763515184874,0.031,92394.0,92393.0,0.1686911]
[1763515185175,0.1082942,92400.0,92393.0,0.1686911]
[1763515185176,0.1392934,92400.0,92399.0,0.06039]
[1763515185480,0.00027055,92406.0,92405.0,0.1686773]
[1763515187075,0.00027055,92406.0,92405.0,0.4313973]
[1763515187280,0.06228055,92406.0,92405.0,0.32311]
[1763515188081,0.03127055,92406.0,92405.0,0.32311]
[1763515188774,0.06228055,92406.0,92405.0,0.02937]
[1763515188980,0.06201,92404.0,92403.0,0.3608]
[1763515189571,0.06201,92401.0,92400.0,0.00171523]
[1763515189773,0.031,92386.0,92385.0,0.42119]
[1763515189971,0.031,92386.0,92385.0,0.68387]
[1763515190280,0.06201,92386.0,92385.0,0.68383]
[1763515191183,0.06201,92386.0,92385.0,0.39017]
[1763515191373,0.06201,92386.0,92385.0,0.3608]
[1763515193167,0.1083107,92385.0,92380.0,0.00171523]
[1763515193376,0.1703207,92385.0,92380.0,0.00171523]
[1763515193771,0.06201,92368.0,92351.0,0.3608]
[1763515193970,0.06201,92352.0,92351.0,0.5295404]
[1763515194176,0.06201,92352.0,92351.0,0.7921804]
[1763515194477,0.01712,92360.0,92359.0,0.1687312]
[1763515194478,0.07913,92360.0,92359.0,0.1687312]
[1763515194678,0.06322547,92360.0,92359.0,0.1687312]
[1763515195178,0.03867624,92382.0,92372.0,0.1687151]
[1763515195179,0.06201,92373.0,92372.0,0.1687151]
[1763515195574,0.031,92373.0,92372.0,0.1687151]
[1763515195780,0.1874466,92380.0,92379.0,0.02937]
[1763515195983,0.18866207,92380.0,92379.0,0.02937]
[1763515196180,0.08034547,92380.0,92379.0,0.02937]
[1763515196383,0.18866207,92380.0,92379.0,0.02937]
[1763515196977,0.1703371,92371.0,92370.0,0.00016234]
[1763515197180,0.1703371,92371.0,92370.0,0.00187757]
[1763515197386,0.1083271,92371.0,92370.0,0.05921757]
[1763515197683,0.1686332,92375.0,92374.0,0.05683]
[1763515197879,0.1686371,92371.0,92370.0,0.00187757]
[1763515198380,0.1686371,92371.0,92370.0,0.00016234]
[1763515201679,0.1312753,92347.0,92346.0,0.00013461]
[1763515201880,1.00716,92347.0,92346.0,0.00013461]
[1763515202080,0.00121547,92350.0,92349.0,0.05683]
[1763515202982,0.02292,92347.0,92346.0,0.00113461]
[1763515203289,0.3608,92347.0,92346.0,0.05796461]
[1763515204082,0.3598,92347.0,92346.0,0.05796461]
[1763515204586,0.3588,92347.0,92346.0,0.05696461]
[1763515204980,0.3608,92355.0,92354.0,0.1083471]
[1763515205285,0.3608,92376.0,92375.0,0.05683]
[1763515207386,0.42111,92376.0,92375.0,0.05683]
[1763515207687,0.39062,92376.0,92375.0,0.05683]
[1763515208983,0.42111,92376.0,92375.0,0.05683]
[1763515209287,0.1686371,92371.0,92370.0,0.00171523]
[1763515209987,0.1686418,92367.0,92366.0,0.00016243]
[1763515210188,0.5294418,92367.0,92366.0,0.00016243]
[1763515210389,0.1686653,92347.0,92346.0,0.10848991]
[1763515210685,0.14264684,92347.0,92346.0,0.00013461]
[1763515210876,0.02982,92347.0,92346.0,0.05696461]
[1763515211793,0.3608,92354.0,92353.0,0.1651782]
[1763515211987,0.00016243,92356.0,92355.0,0.05683]
[1763515212488,0.00016243,92356.0,92355.0,0.31947]
[1763515214392,0.00016243,92356.0,92350.0,0.00171523]
[1763515214393,0.1686606,92351.0,92350.0,0.05854523]
[1763515214594,0.5294606,92351.0,92350.0,0.05854523]
[1763515214894,0.5284606,92351.0,92350.0,0.05854523]
[1763515215688,0.42011,92351.0,92350.0,0.05954523]
[1763515215889,0.3608,92351.0,92350.0,0.05954523]
[1763515216093,0.3608,92351.0,92350.0,0.06054523]
[1763515216695,0.42111,92351.0,92350.0,0.06054523]
[1763515216993,0.42111,92351.0,92350.0,0.05954523]
[1763515217291,0.42111,92351.0,92350.0,0.06054523]
[1763515217689,0.42111,92351.0,92350.0,0.05954523]
[1763515217891,0.00016243,92356.0,92355.0,0.1372059]
[1763515218092,0.00016243,92356.0,92355.0,0.1651759]
[1763515218484,3.952e-05,92356.0,92355.0,0.1651759]
[1763515219494,3.952e-05,92356.0,92355.0,0.1661759]
[1763515219898,3.952e-05,92356.0,92355.0,0.05783]
[1763515220396,3.952e-05,92356.0,92355.0,0.05883]
[1763515221910,3.952e-05,92356.0,92355.0,0.05783]
[1763515222202,3.952e-05,92356.0,92355.0,0.1651759]
[1763515222395,3.952e-05,92356.0,92355.0,0.20388957]
[1763515223003,3.952e-05,92356.0,92355.0,0.1651759]
[1763515225004,0.3608,92369.0,92368.0,0.1681906]
[1763515226604,0.33478484,92369.0,92368.0,0.1681906]
[1763515227002,0.33478484,92369.0,92368.0,0.1691906]
[1763515227598,0.33478484,92369.0,92368.0,0.1681906]
[1763515228305,0.33478484,92369.0,92368.0,0.05986]
[1763515228500,0.39472484,92369.0,92368.0,0.06086]
[1763515229908,0.39472484,92369.0,92368.0,0.05986]
[1763515230505,0.39472484,92369.0,92368.0,0.3225]
[1763515230711,0.33478484,92369.0,92368.0,0.3235]
[1763515230910,0.36096175,92378.0,92377.0,0.1674901]
[1763515231206,0.36096175,92378.0,92377.0,0.4301301]
[1763515231409,0.3608,92386.0,92385.0,0.1674807]
[1763515231712,0.06151,92397.0,92396.0,0.1674663]
[1763515234115,0.03101,92397.0,92396.0,0.05917]
[1763515234310,0.06151,92397.0,92396.0,0.05917]
[1763515234912,0.1698137,92391.0,92390.0,0.05917]
[1763515235111,0.1698137,92391.0,92390.0,0.06088523]
[1763515235607,0.06151,92391.0,92390.0,0.06088523]
[1763515235913,0.1082841,92408.0,92390.0,0.06088523]
[1763515235914,0.00027055,92406.0,92405.0,0.1674573]
[1763515236101,0.00027055,92406.0,92405.0,0.4300573]
[1763515236415,0.3608,92417.0,92416.0,0.1674444]
[1763515236603,0.3608,92427.0,92426.0,0.1674327]
[1763515236803,0.42231,92427.0,92426.0,0.05917]
[1763515237809,0.42331,92427.0,92426.0,0.05917]
[1763515238203,0.42231,92427.0,92426.0,0.05917]
[1763515238410,0.42331,92427.0,92426.0,0.05917]
[1763515238608,0.3618,92427.0,92426.0,0.05917]
[1763515238812,0.39281,92427.0,92426.0,0.05917]
[1763515239009,0.42331,92427.0,92426.0,0.05917]
[1763515239320,0.3618,92427.0,92426.0,0.05917]
[1763515240112,0.3618,92427.0,92426.0,0.1674327]
[1763515240803,0.3618,92427.0,92426.0,0.05917]
[1763515244915,0.001,92427.0,92426.0,0.05917]
[1763515245810,0.001,92427.0,92426.0,0.32169]
[1763515246316,0.000877,92427.0,92426.0,0.32169]
[1763515246620,0.3608,92444.0,92443.0,0.1674128]
[1763515248116,0.3628,92444.0,92443.0,0.1674128]
[1763515248716,0.3638,92444.0,92443.0,0.1674128]
[1763515249920,0.39481,92444.0,92443.0,0.05917]
[1763515251823,0.42531,92444.0,92443.0,0.05917]
[1763515252410,0.3638,92444.0,92443.0,0.05917]
[1763515252616,0.003,92444.0,92443.0,0.05917]
[1763515253917,0.001,92444.0,92443.0,0.05917]
[1763515254125,0.002,92444.0,92443.0,0.05917]
[1763515256214,0.06351,92444.0,92443.0,0.05917]
[1763515256530,0.06151,92441.0,92440.0,0.06088523]
[1763515256717,0.06151,92441.0,92440.0,0.32328523]
[1763515257727,0.06251,92441.0,92440.0,0.32328523]
[1763515257930,0.06351,92441.0,92440.0,0.32328523]
[1763515259017,0.05983,92441.0,92440.0,0.06088523]
[1763515259218,0.05983,92441.0,92440.0,0.32328523]
[1763515259425,0.03086,92441.0,92440.0,0.32328523]
[1763515259627,0.002,92441.0,92440.0,0.32328523]
[1763515260823,0.00027043,92446.0,92445.0,0.1681504]
[1763515261031,0.41863,92466.0,92465.0,0.168127]
[1763515261219,0.3608,92466.0,92465.0,0.168127]
[1763515261417,0.41863,92476.0,92475.0,0.1835453]
[1763515261732,0.3608,92476.0,92475.0,0.1835453]
[1763515262513,0.38966,92476.0,92475.0,0.1835453]
[1763515263121,0.00121547,92480.0,92475.0,0.1835453]
[1763515263327,0.05904547,92480.0,92479.0,0.1681106]
[1763515263529,0.3608,92484.0,92483.0,0.168106]
[1763515263829,0.00027031,92486.0,92485.0,0.05991]
[1763515264527,0.02913031,92486.0,92485.0,0.05991]
[1763515264724,0.05810031,92486.0,92485.0,0.05991]
[1763515265317,0.00027031,92486.0,92485.0,0.05991]
[1763515265829,0.3608,92505.0,92504.0,0.05991]
[1763515266131,0.3608,92513.0,92512.0,0.1376221]
[1763515266426,0.3608,92513.0,92512.0,0.4303921]
[1763515267523,0.0002702,92526.0,92512.0,0.4303921]
[1763515267524,0.0002702,92526.0,92520.0,0.01543]
[1763515267725,0.0002702,92526.0,92525.0,0.05991]
[1763515267920,0.1662459,92526.0,92525.0,0.05991]
[1763515268127,0.0581002,92526.0,92525.0,0.05991]
[1763515268326,0.0002702,92526.0,92525.0,0.1680569]
[1763515268533,0.0291302,92526.0,92525.0,0.1680569]
[1763515268830,0.0591002,92526.0,92525.0,0.05991]
[1763515269627,0.0591002,92526.0,92521.0,0.26232]
[1763515269628,0.05783,92522.0,92521.0,0.26232]
[1763515269926,0.05783,92522.0,92521.0,0.32223]
[1763515270131,0.05683,92522.0,92521.0,0.29277]
[1763515270518,0.05683,92522.0,92521.0,0.32223]
[1763515271027,0.3608,92523.0,92522.0,0.05991]
[1763515271331,0.0002702,92526.0,92525.0,0.1680569]
[1763515271537,0.0002702,92526.0,92525.0,0.05991]
[1763515271831,0.0002702,92526.0,92525.0,0.1680568]
[1763515272431,0.3608,92532.0,92531.0,0.1680498]
[1763515272728,0.3608,92550.0,92549.0,0.1680288]
[1763515272934,0.3608,92558.0,92557.0,0.05991]
[1763515273134,0.3608,92558.0,92557.0,0.32215]
[1763515273431,0.41863,92558.0,92557.0,0.32215]
[1763515273925,0.3608,92558.0,92557.0,0.32215]
[1763515274632,0.3608,92558.0,92557.0,0.32415]
[1763515275334,0.3608,92558.0,92557.0,0.32315]
[1763515275837,0.41863,92558.0,92557.0,0.29369]
[1763515276022,0.41863,92558.0,92557.0,0.29365]
[1763515276823,0.41863,92558.0,92557.0,0.29265]
[1763515277431,0.05783,92551.0,92550.0,0.03045]
[1763515277633,0.05783,92551.0,92550.0,0.00171523]
[1763515278627,0.05783,92551.0,92550.0,0.00271523]
[1763515278836,0.05783,92551.0,92550.0,0.00371523]
[1763515279133,0.41863,92558.0,92557.0,0.1680195]
[1763515279337,0.3608,92558.0,92557.0,0.1680195]
[1763515280123,0.3608,92576.0,92565.0,0.1834401]
[1763515280535,0.1080926,92572.0,92565.0,0.07534]
[1763515280933,0.3608,92576.0,92565.0,0.07534]
[1763515281234,0.3608,92584.0,92583.0,0.1679891]
[1763515281438,0.3608,92594.0,92583.0,0.1679891]
[1763515281439,0.3608,92594.0,92592.0,0.1080675]
[1763515281738,0.3608,92594.0,92593.0,0.05625]
[1763515282532,0.00026996,92606.0,92594.0,0.1591663]
[1763515282836,0.00026996,92606.0,92592.0,0.26208]
[1763515282837,0.00026996,92606.0,92605.0,0.0511]
[1763515283037,0.00026996,92606.0,92605.0,0.31318]
[1763515283339,0.00026996,92606.0,92605.0,0.0511]
[1763515283735,0.04904996,92606.0,92605.0,0.0511]
[1763515283931,0.04904996,92606.0,92605.0,0.0253]
[1763515283932,0.05004996,92606.0,92605.0,0.0253]
[1763515284241,0.02432,92604.0,92603.0,0.31318]
[1763515284443,0.00126996,92606.0,92603.0,0.31318]
[1763515284444,0.00126996,92606.0,92605.0,0.0511]
[1763515284936,0.04878,92601.0,92600.0,0.00171523]
[1763515286040,0.3608,92602.0,92574.0,0.26204]
[1763515286041,0.04878,92575.0,92574.0,0.26204]
[1763515286427,0.04878,92571.0,92570.0,0.00171523]
[1763515287442,0.04987,92562.0,92561.0,0.26216206]
[1763515287835,0.04787,92562.0,92561.0,0.00016206]
[1763515288439,0.04687,92562.0,92561.0,0.00016206]
[1763515289349,0.04687,92562.0,92561.0,0.00116206]
[1763515289532,0.1579865,92551.0,92550.0,0.00011276]
[1763515289733,0.5187865,92551.0,92550.0,0.00011276]
[1763515290245,0.5187865,92551.0,92502.0,0.03863727]
[1763515290246,0.04887,92527.0,92525.0,0.3701465]
[1763515290544,0.3608,92543.0,92542.0,0.04943]
[1763515291144,0.36091276,92543.0,92542.0,0.04943]
[1763515291347,0.00011276,92543.0,92542.0,0.04943]
[1763515291542,0.00016206,92552.0,92551.0,0.1575465]
[1763515291746,0.3608,92560.0,92559.0,0.1575371]
[1763515291937,0.3608,92578.0,92577.0,0.1575161]
[1763515292138,0.38645,92591.0,92590.0,0.02549]
[1763515292343,0.38645,92591.0,92590.0,0.02720523]
[1763515292344,0.41067,92591.0,92590.0,0.02720523]
[1763515292649,0.41067,92591.0,92590.0,0.00171523]
[1763515293048,0.04987,92582.0,92581.0,2.06e-06]
[1763515293240,0.04987,92582.0,92570.0,0.02549]
[1763515293241,0.1080882,92576.0,92570.0,0.02549]
[1763515293444,0.1579598,92574.0,92573.0,0.02549]
[1763515293649,0.1579631,92571.0,92570.0,0.00171523]
[1763515293939,0.02565,92571.0,92570.0,0.05114523]
[1763515294345,0.04987,92571.0,92570.0,0.00171523]
[1763515294847,0.04987,92562.0,92561.0,0.00016206]
[1763515295246,0.1579736,92562.0,92561.0,0.00016206]
[1763515295552,0.4689015,92564.0,92563.0,0.02549]
[1763515295940,0.04987,92562.0,92561.0,0.00016206]
[1763515296145,0.04987,92562.0,92561.0,0.00116206]
[1763515296850,0.04987,92562.0,92561.0,0.04959206]
[1763515297049,0.03867624,92586.0,92579.0,0.1575138]
[1763515297249,0.03696101,92607.0,92605.0,0.04943]
[1763515297444,0.13542569,92639.0,92605.0,0.28259]
[1763515297445,0.03864535,92611.0,92605.0,0.28259]
[1763515297754,0.3552916,92641.0,92605.0,0.28259]
[1763515297755,0.24728,92641.0,92605.0,0.28259]
[1763515297956,0.31267533,92670.0,92611.0,0.1080456]
[1763515297957,0.1232628,92640.0,92611.0,0.1080456]
[1763515298252,0.1232628,92640.0,92610.0,0.01512]
[1763515298253,0.04987,92626.0,92625.0,0.1080295]
[1763515298452,0.05003329,92626.0,92620.0,0.1080358]
[1763515298752,0.00016329,92625.0,92620.0,0.1080358]
[1763515299047,0.00016044,92635.0,92634.0,0.1335096]
[1763515299449,0.00032373,92635.0,92634.0,0.1335096]
[1763515299648,0.003,92640.0,92639.0,0.1574438]
[1763515299961,0.3608,92663.0,92655.0,0.01512]
[1763515300148,0.00219803,92660.0,92659.0,0.02549]
[1763515300346,0.02565,92674.0,92657.0,0.3608]
[1763515300547,0.00219803,92670.0,92669.0,0.1079788]
[1763515300849,0.04987,92678.0,92677.0,0.1079684]
[1763515301041,0.04987,92668.0,92667.0,0.3608]
[1763515301250,0.04987,92657.0,92656.0,0.36096195]
[1763515302248,0.00419803,92660.0,92657.0,0.1079928]
[1763515302452,0.002,92660.0,92659.0,0.04943]
[1763515302648,0.3608,92692.0,92658.0,0.3608]
[1763515302954,0.04987,92683.0,92682.0,0.3608]
[1763515303145,0.04987,92677.0,92674.0,0.3608]
[1763515303345,0.04987,92677.0,92675.0,0.1079718]
[1763515303550,0.02565,92677.0,92675.0,0.1079718]
[1763515304156,0.04987,92675.0,92674.0,0.3608]
[1763515304358,0.02816,92674.0,92673.0,1.86e-06]
[1763515304751,0.38896,92674.0,92673.0,1.86e-06]
[1763515304953,0.02816,92674.0,92673.0,1.86e-06]
[1763515305148,0.00026973,92686.0,92679.0,0.1079669]
[1763515305349,0.00219803,92680.0,92679.0,0.1573969]
[1763515305549,0.00026973,92686.0,92685.0,0.1573901]
[1763515306050,0.0001597,92692.0,92691.0,0.1079532]
[1763515306356,0.0001597,92692.0,92691.0,0.1573832]
[1763515307062,0.0001597,92692.0,92687.0,0.3608]
[1763515307063,0.02784,92688.0,92687.0,0.3608]
[1763515307549,0.02784,92680.0,92679.0,0.3608]
[1763515307751,0.03003803,92680.0,92679.0,0.3608]
[1763515308464,0.00219803,92680.0,92671.0,0.3608]
[1763515308650,0.1079721,92675.0,92671.0,0.3608]
[1763515308957,0.3608,92674.0,92651.0,0.26232]
[1763515309163,0.1079841,92665.0,92651.0,0.3703192]
[1763515309363,0.01392,92652.0,92651.0,0.3703192]
[1763515310361,0.00016156,92661.0,92660.0,0.1574193]
[1763515310555,0.00016156,92661.0,92660.0,0.5182193]
[1763515310864,0.001,92674.0,92673.0,0.1574041]
[1763515311158,0.001,92674.0,92673.0,0.5182041]
[1763515311356,0.0007012,92674.0,92673.0,0.5182041]
[1763515311663,0.3608,92697.0,92695.0,0.1079476]
[1763515311958,0.3608,92708.0,92707.0,0.1079345]
[1763515312362,0.00219803,92710.0,92707.0,0.1079345]
[1763515312560,0.02956,92706.0,92698.0,0.1079449]
[1763515312856,0.01478,92697.0,92696.0,0.3608]
[1763515313059,0.02956,92697.0,92696.0,0.3608]
[1763515313960,0.01478,92697.0,92696.0,0.3608]
[1763515314163,0.3608,92710.0,92696.0,0.3608]
[1763515314164,0.3608,92710.0,92709.0,0.1079322]
[1763515314462,0.3608,92710.0,92709.0,0.1573622]
[1763515314660,0.00219803,92710.0,92709.0,0.04943]
[1763515314863,0.1079322,92709.0,92706.0,0.3608]
[1763515315160,0.00219803,92710.0,92707.0,0.1079345]
[1763515315561,0.1374945,92707.0,92690.0,0.12817328]
[1763515315859,0.1375062,92697.0,92682.0,0.3608]
[1763515316064,0.1227367,92688.0,92682.0,0.3608]
[1763515316260,0.1375167,92688.0,92682.0,0.3608]
[1763515316661,0.4983167,92688.0,92675.0,0.3608]
[1763515317055,0.4983167,92688.0,92663.0,0.3608]
[1763515317056,0.1375446,92664.0,92663.0,0.3608]
[1763515317464,0.02956,92664.0,92663.0,0.3608]
[1763515317652,0.1079858,92663.0,92659.0,0.1079898]
[1763515317858,0.00219803,92660.0,92659.0,0.1079898]
[1763515318165,0.1079904,92659.0,92656.0,0.1079939]
[1763515318358,0.00219803,92660.0,92656.0,0.1079939]
[1763515318756,0.00219803,92660.0,92655.0,0.3608]
[1763515318757,0.02107,92656.0,92655.0,0.3608]
[1763515318957,0.04214,92656.0,92655.0,0.3608]
[1763515320255,0.1501398,92651.0,92650.0,0.00016186]
[1763515320461,0.04214,92631.0,92630.0,0.3608]
[1763515320661,0.3608,92639.0,92630.0,0.3608]
[1763515320853,0.1080149,92638.0,92630.0,0.3608]
[1763515321058,0.04214,92631.0,92630.0,0.3608]
[1763515321362,0.04214,92631.0,92608.0,0.01512]
[1763515321363,0.15236233,92630.0,92621.0,0.00016186]
[1763515321563,0.04162,92607.0,92606.0,0.3608]
[1763515321763,0.1080541,92605.0,92598.0,0.3608]
[1763515321953,0.00219803,92610.0,92609.0,0.02351]
[1763515322156,0.00219803,92610.0,92609.0,0.04696]
[1763515322361,0.00219803,92610.0,92598.0,0.3608]
[1763515322362,0.04162,92599.0,92598.0,0.3608]
[1763515322962,0.00219803,92600.0,92598.0,0.3608]
[1763515323161,0.04162,92599.0,92598.0,0.3608]
[1763515323362,0.00219803,92600.0,92598.0,0.3608]
[1763515323659,0.04162,92599.0,92598.0,0.3608]
[1763515323861,0.04062,92599.0,92598.0,0.3608]
[1763515324058,0.00219803,92600.0,92599.0,0.1315704]
[1763515324254,0.03962,92599.0,92598.0,0.3608]
[1763515324462,0.40042,92599.0,92592.0,0.01627]
[1763515324757,0.40042,92599.0,92589.0,0.00016195]
[1763515324758,0.1080697,92592.0,92589.0,0.00016195]
[1763515324959,0.1080709,92590.0,92589.0,0.00016195]
[1763515325161,0.04181803,92590.0,92589.0,0.00016195]
[1763515325665,0.00219803,92590.0,92589.0,0.04712195]
[1763515325858,8.969e-05,92591.0,92590.0,0.1550309]
[1763515326054,0.001,92600.0,92599.0,0.1550204]
[1763515326360,0.00319803,92600.0,92599.0,0.04696]
[1763515326564,0.001,92600.0,92599.0,0.04696]
[1763515326867,0.1080474,92611.0,92607.0,0.02351]
[1763515327065,0.1080474,92611.0,92592.0,0.01627]
[1763515327066,0.1478604,92599.0,92592.0,0.01627]
[1763515327459,0.1478604,92599.0,92593.0,0.02901679]
[1763515327768,0.3608,92611.0,92607.0,0.02351]
[1763515328066,0.00219803,92610.0,92607.0,0.04696]
[1763515328467,0.1080542,92605.0,92601.0,0.3608]
[1763515328667,0.001,92599.0,92598.0,0.04696]
[1763515329065,0.001,92599.0,92598.0,0.07598728]
[1763515329460,0.001,92599.0,92598.0,0.04696]
[1763515329671,0.001,92599.0,92598.0,0.07597764]
[1763515330070,0.00016195,92608.0,92607.0,0.04696]
[1763515330268,0.1080578,92602.0,92597.0,0.3608]
[1763515330466,0.0199,92599.0,92598.0,0.0290065]
[1763515330658,0.00116195,92608.0,92599.0,0.04696]
[1763515330659,0.00219803,92600.0,92599.0,0.04696]
[1763515330862,0.0398,92598.0,92597.0,0.3608]
[1763515331069,0.00219803,92600.0,92595.0,0.1080647]
[1763515331574,0.00219803,92600.0,92592.0,0.01627]
[1763515331575,0.00219803,92600.0,92596.0,0.1080639]
[1763515331765,0.11125723,92600.0,92599.0,0.02351]
[1763515331972,0.0398,92590.0,92589.0,0.00016195]
[1763515332173,0.15006893,92590.0,92589.0,0.00016195]
[1763515333869,0.15006893,92590.0,92565.0,0.3608]
[1763515333870,0.1080975,92568.0,92565.0,0.4688996]
[1763515334073,0.00219803,92570.0,92568.0,0.1080962]
[1763515334275,0.1080989,92566.0,92565.0,0.3608]
[1763515334470,0.1478989,92566.0,92565.0,0.3608]
[1763515334869,0.0398,92566.0,92565.0,0.3608]
[1763515335072,0.0199,92566.0,92565.0,0.38431]
[1763515335278,0.1080977,92568.0,92567.0,0.02351]
[1763515335679,0.1080966,92568.0,92567.0,0.04696]
[1763515335980,0.0398,92566.0,92565.0,0.3608]
[1763515336179,0.00219803,92570.0,92565.0,0.3608]
[1763515336180,0.00219803,92570.0,92566.0,0.1080989]
[1763515336480,0.00219803,92570.0,92569.0,0.1550554]
[1763515336669,0.00219803,92570.0,92569.0,0.04696]
[1763515336864,0.1478989,92566.0,92565.0,0.3608]
[1763515337574,0.26248,92568.0,92566.0,0.1080989]
[1763515337777,0.1080978,92567.0,92566.0,0.1080989]
[1763515338276,0.0398,92566.0,92565.0,0.3608]
[1763515338475,0.0398,92566.0,92557.0,0.00012731]
[1763515338476,0.1479083,92558.0,92557.0,0.00012731]
[1763515339479,0.0398,92558.0,92557.0,0.00012731]
[1763515339775,0.3608,92574.0,92565.0,0.1550601]
[1763515339776,0.001,92566.0,92565.0,0.1550601]
[1763515340677,0.1090989,92566.0,92565.0,0.04696]
[1763515340976,0.1478989,92566.0,92565.0,0.04696]
[1763515341178,0.00219803,92570.0,92569.0,0.1550554]
[1763515341678,0.13019233,92570.0,92569.0,0.04696]
[1763515341883,0.1081083,92558.0,92557.0,0.05071731]
[1763515342177,0.1351483,92558.0,92557.0,0.00012731]
[1763515343078,0.1351483,92558.0,92557.0,0.10823681]
[1763515343277,0.1361483,92558.0,92557.0,0.00012731]
[1763515344276,0.001,92558.0,92557.0,0.05071731]
[1763515344581,0.001,92558.0,92557.0,0.41151731]
[1763515345381,0.001,92558.0,92557.0,0.54867808]
[1763515345573,0.00219803,92560.0,92559.0,0.05059]
[1763515345775,0.00219803,92560.0,92559.0,0.07964137]
[1763515345983,0.02704,92558.0,92557.0,0.00012731]
[1763515346372,0.02804,92558.0,92557.0,0.00012731]
[1763515346973,0.001,92558.0,92557.0,0.05071731]
[1763515347274,0.11030393,92560.0,92559.0,0.05059]
[1763515347480,0.11030393,92560.0,92559.0,0.07863766]
[1763515348175,0.11030393,92560.0,92559.0,0.07863781]
[1763515348986,0.13581393,92560.0,92559.0,0.07863781]
[1763515349683,0.13681393,92560.0,92559.0,0.07863781]
[1763515349881,0.13681393,92560.0,92559.0,0.02804781]
[1763515350877,0.13681393,92560.0,92557.0,0.00012731]
[1763515351083,0.1081211,92547.0,92545.0,0.02835238]
[1763515351285,0.1081235,92545.0,92543.0,0.02835238]
[1763515351588,0.1081317,92538.0,92537.0,0.02835238]
[1763515351788,0.4689317,92538.0,92537.0,0.02835238]
[1763515351987,0.46903188,92538.0,92537.0,0.05359238]
[1763515352186,0.46903188,92538.0,92537.0,0.04914]
[1763515352579,0.46903188,92538.0,92536.0,0.02835238]
[1763515352882,0.46903188,92538.0,92537.0,0.04914]
[1763515353481,0.00010018,92538.0,92537.0,0.1572728]
[1763515353686,0.1081363,92534.0,92531.0,0.02883431]
[1763515353998,0.108141,92530.0,92526.0,0.02883431]
[1763515354287,0.108141,92530.0,92526.0,0.01446]
[1763515354485,0.108141,92530.0,92524.0,0.38963431]
[1763515354683,0.108141,92530.0,92519.0,0.03863727]
[1763515354684,0.36093228,92529.0,92519.0,0.02883431]
[1763515354886,0.36093228,92529.0,92518.0,0.02883431]
[1763515355278,0.1081437,92528.0,92516.0,0.02883431]
[1763515355478,0.1081562,92517.0,92516.0,0.02524]
[1763515356090,0.1081562,92517.0,92516.0,0.04914]
[1763515356881,0.1091562,92517.0,92516.0,0.04914]
[1763515358188,0.1081562,92517.0,92516.0,0.04914]
[1763515358490,0.1091562,92517.0,92516.0,0.04914]
[1763515359680,0.1081609,92513.0,92512.0,0.04326044]
[1763515359883,0.10824428,92513.0,92512.0,0.01444]
[1763515361394,0.10924428,92513.0,92512.0,0.01444]
[1763515362290,0.1081655,92509.0,92508.0,0.01446]
[1763515362488,0.00219803,92510.0,92509.0,0.1573055]
[1763515362790,0.26455803,92510.0,92509.0,0.1573055]
[1763515363093,0.26455803,92510.0,92509.0,0.18534059]
[1763515363388,0.00219803,92510.0,92509.0,0.18534059]
[1763515363891,0.00219803,92510.0,92509.0,0.21416103]
[1763515364387,0.00219803,92510.0,92509.0,0.02803509]
[1763515365093,0.00319803,92510.0,92509.0,0.02803509]
[1763515366291,0.00319803,92510.0,92507.0,0.00010804]
[1763515366292,0.1081655,92509.0,92507.0,0.00010804]
[1763515366595,0.1081655,92509.0,92508.0,0.02804217]
[1763515366788,0.1081655,92509.0,92507.0,0.00010804]
[1763515367494,0.00319803,92510.0,92509.0,0.1573055]
[1763515367702,0.00319803,92510.0,92509.0,0.07717811]
[1763515367991,0.26551803,92510.0,92509.0,0.07717811]
[1763515368394,0.26451803,92510.0,92509.0,0.02803811]
[1763515368990,0.1081656,92509.0,92507.0,0.00010804]
[1763515369692,0.1081656,92509.0,92508.0,0.01446]
[1763515369998,0.1081656,92509.0,92508.0,0.0636]